[Event "ChessKid Cup Div-III 2023"]
[Site "Online"]
[Date "2023.05.23"]
[Round "52.2"]
[White "Terry, Renato"]
[Black "Kamsky, Gata"]
[Result "1/2-1/2"]
[ECO "D03"]
[WhiteElo "2520"]
[BlackElo "2665"]
[Annotator "TA"]
[PlyCount "161"]
[EventDate "2023.05.21"]
[EventType "k.o."]
[EventCountry "NET"]
[SourceTitle "playchess.com"]
[Source "ChessBase"]
[SourceQuality "1"]
[TimeControl "900+3"]

{[%evp 13,161,8,14,8,28,10,25,0,0,0,4,0,2,-1,0,0,0,0,0,0,0,0,0,0,0,0,0,0,0,-3,-3,0,0,-17,0,-14,-14,-18,-11,-12,-9,-12,-9,-15,-18,-12,-8,-8,-8,-12,-10,-11,-13,-43,-36,-64,-61,-113,-77,-195,-95,-91,-100,-166,-165,-152,-133,-113,-92,-62,0,0,-5,-8,-8,-555,0,-8,-8,-32,0,0,0,-60,-10,-10,-10,-10,-10,-10,-10,-10,-10,-10,-10,-10,-10,-10,-10,-10,-10,-10,-10,-10,-10,-10,-10,-10,-10,-10,-10,-10,-10,-10,-10,-10,-10,-10,0,-10,-10,-10,-10,-10,-10,-10,-10,-10,-10,-10,-10,-10,-10,-10,-10,-10,-10,-10,-10,-10,-10,-10,-10,-10,-10,-11,-10,-10,-10,-10]} 1. d4 {[%emt 0:00:13]} Nf6 {[%emt 0:00:12]} 2. Bg5 {[%emt 0:00:32]} d5 {[%emt 0:01:16]} 3. e3 {[%emt 0:00:12]} e6 {[%emt 0:00:09]} 4. Bd3 {[%emt 0:00:08]} c5 {[%emt 0:00:14]} 5. c3 {[%emt 0:00:01]} Be7 {[%emt 0:00:43]} 6. Nd2 {[%emt 0:00:05]} Nbd7 {[%emt 0:00:12]} 7. Ngf3 {[%emt 0:00:20]} Qc7 {[%emt 0:00:27]} 8. Qe2 {[%emt 0:00:38] D03: 1 d4 d5 2 Nf3 Nf6 3 Bg5, including Torre Attack with early ...d5.} b6 {[%emt 0:00:11]} 9. O-O {[%emt 0:00:36]} Bb7 {[%emt 0:00:06]} 10. Rac1 {[%emt 0:00:02] [#] White has an edge.} c4 $146 {[%emt 0:00:42]} ({Predecessor:} 10... O-O 11. e4 dxe4 12. Nxe4 h6 13. Bh4 Nxe4 14. Bxe7 Rfe8 15. Bxe4 Rxe7 16. Rfd1 Bxe4 17. Qxe4 {½-½ Biolek,R (2449)-Kuchynka,L (2310) CZE-chT 1213 2012 (9.6)}) 11. Bb1 {[%emt 0:00:06]} O-O {[%emt 0:00:29]} 12. Rfe1 {[%emt 0:00:44]} Rfe8 {[%emt 0:00:36]} 13. e4 {[%emt 0:00:28]} dxe4 {[%emt 0:00:05]} 14. Nxe4 {[%emt 0:00:04]} Nxe4 {[%emt 0:00:46]} 15. Bxe4 {[%emt 0:00:04]} Bxe4 {[%emt 0:00:17]} 16. Qxe4 {[%emt 0:00:02]} Bxg5 {[%emt 0:00:07]} 17. Nxg5 {[%emt 0:00:01]} Nf6 {[%emt 0:00:01]} 18. Qh4 {[%emt 0:00:28]} Rad8 {[%emt 0:00:12]} 19. Re5 {[%emt 0:00:13]} h6 {[%emt 0:00:05]} 20. Nf3 {[%emt 0:00:02]} Rd5 {[%emt 0:00:10]} 21. Rce1 {[%emt 0:00:20]} b5 {[%emt 0:00:04][%cal Ob5b4]} 22. g4 {[%emt 0:01:12]} Rxe5 {[%emt 0:00:38]} 23. Rxe5 {[%emt 0:02:22]} Nd7 {[%emt 0:00:36]} 24. Re3 {[%emt 0:00:22]} (24. Rxb5 $2 Qc6 25. Ra5 Qxf3 $19) 24... Qf4 {[%emt 0:00:16]} 25. Qg3 $1 {[%emt 0:05:36]} Qxg3+ {[%emt 0:00:08]} 26. hxg3 $11 {[%emt 0:00:00][%mdl 4096] Endgame KRN-KRN} Nf6 {[%emt 0:00:21]} 27. g5 {[%emt 0:00:01]} Nd5 {[%emt 0:00:04]} 28. Re2 {[%emt 0:00:01]} hxg5 {[%emt 0:00:04]} 29. Nxg5 {[%emt 0:00:00]} Rb8 {[%emt 0:00:10]} 30. a3 {[%emt 0:00:02]} a5 {[%emt 0:00:02][%cal Ba7a5,Ba5b4,Bb4b3][%mdl 32]} 31. Ne4 {[%emt 0:00:08]} b4 {[%emt 0:00:02]} 32. axb4 {[%emt 0:00:02]} axb4 {[%emt 0:00:01]} 33. Rc2 {[%emt 0:00:04]} b3 {[%emt 0:01:02]} 34. Re2 {[%emt 0:00:01]} Ra8 {[%emt 0:00:00]} 35. Nd6 {[%emt 0:00:01]} (35. Nd2 $15) 35... Ra4 {[%emt 0:00:04][%cal Od5c3]} 36. f4 {[%emt 0:00:36]} (36. Kf1 $17 {is a better defense.}) 36... g6 {[%emt 0:00:03]} (36... Nxc3 $1 $19 37. bxc3 Ra2) 37. Kf2 $17 {[%emt 0:00:03]} Kf8 $1 {[%emt 0:00:02]} 38. Kf3 {[%emt 0:00:48]} (38. f5 $17 {keeps fighting.} gxf5 39. Kf3) 38... Ke7 $19 {[%emt 0:00:02]} 39. Ne4 {[%emt 0:00:01]} Ra2 {[%emt 0:00:08]} 40. g4 {[%emt 0:00:01][%cal Of4f5]} Ra1 {[%emt 0:02:01]} 41. f5 {[%emt 0:00:01]} gxf5 {[%emt 0:00:04]} ({Much worse is} 41... exf5 42. gxf5 Rf1+ 43. Kg3 $11 (43. Kg2 Rxf5 44. Ng3+ Kd7 $11)) (41... Rf1+ $1 $15 42. Kg3 gxf5 43. gxf5 Rxf5) 42. gxf5 $11 {[%emt 0:00:01]} Rf1+ {[%emt 0:00:03]} 43. Nf2 {[%emt 0:00:00]} Rc1 {[%emt 0:00:17][%cal Od5c3] And now ...Nxc3! would win.} 44. fxe6 $2 {[%emt 0:00:02][%mdl 8192] [#]} (44. Ne4 $11 {and White stays safe.}) 44... fxe6 $2 {[%emt 0:00:13]} (44... Nxc3 $1 $19 45. Re5 (45. bxc3 $2 {loses.} Rxc3+ 46. Kf4 Rc2 $19) 45... fxe6) 45. Ne4 {[%emt 0:00:12]} Rc2 {[%emt 0:00:06][%cal Od5f4] Threatens to win with ...Nf4!} 46. Rf2 {[%emt 0:00:21]} e5 {[%emt 0:00:46]} 47. dxe5 {[%emt 0:00:01]} Ke6 {[%emt 0:00:04]} 48. Nd6 {[%emt 0:00:04] [#]} ({Better is} 48. Rg2 $11) 48... Nxc3 {[%emt 0:00:10]} 49. Nxc4 {[%emt 0:00:01] [#] The position is equal.} Ne4 $1 {[%emt 0:00:20][%mdl 64] Discovered Attack, Deflection} 50. Kxe4 {[%emt 0:00:06] aiming for Rf6+.} Rxf2 {[%emt 0:00:02] KR-KN} 51. Kd4 {[%emt 0:00:02]} Rc2 {[%emt 0:00:20]} 52. Kd3 {[%emt 0:00:01]} Rh2 {[%emt 0:00:54]} 53. Na5 {[%emt 0:00:04]} Rxb2 {[%emt 0:00:06]} (53... Kxe5 {simplifies} 54. Kc4 Rh4+ 55. Kxb3 Kd5) 54. Kc3 {[%emt 0:00:01][%csl LRb2,LRb3]} Rh2 {[%emt 0:00:08]} 55. Nxb3 {[%emt 0:00:01]} Kxe5 {[%emt 0:00:00]} 56. Nd2 {[%emt 0:00:01]} Kd5 {[%emt 0:00:03]} 57. Kd3 {[%emt 0:00:03]} Rh3+ {[%emt 0:00:01]} 58. Ke2 {[%emt 0:00:01]} Ra3 {[%emt 0:00:02]} 59. Nf3 {[%emt 0:00:02]} Ke4 {[%emt 0:00:01]} 60. Nd2+ {[%emt 0:00:01]} Kf4 {[%emt 0:00:00]} 61. Nc4 {[%emt 0:00:00]} Rc3 {[%emt 0:00:01]} 62. Nd2 {[%emt 0:00:01]} Re3+ {[%emt 0:00:01]} 63. Kf2 {[%emt 0:00:01]} Re8 {[%emt 0:00:02]} 64. Nf3 {[%emt 0:00:04]} Rh8 {[%emt 0:00:03]} 65. Ke2 {[%emt 0:00:02]} Re8+ {[%emt 0:00:08]} 66. Kf2 {[%emt 0:00:01]} Ra8 {[%emt 0:00:01] ( -> ...Ra2+)} 67. Ke2 $1 {[%emt 0:00:01]} Ra3 {[%emt 0:00:08]} 68. Nd2 {[%emt 0:00:03]} Rh3 {[%emt 0:00:01]} 69. Nc4 {[%emt 0:00:02]} Rb3 {[%emt 0:00:11]} 70. Nd2 {[%emt 0:00:01]} Rc3 {[%emt 0:00:01]} 71. Nb1 {[%emt 0:00:04]} Re3+ {[%emt 0:00:05]} 72. Kd2 {[%emt 0:00:01]} Rh3 {[%emt 0:00:14]} 73. Nc3 {[%emt 0:00:02]} Ke5 {[%emt 0:00:01]} 74. Ne2 {[%emt 0:00:02]} Ke4 {[%emt 0:00:01]} 75. Nc3+ $1 {[%emt 0:00:02]} Kd4 {[%emt 0:00:01]} 76. Ne2+ {[%emt 0:00:01]} Kc4 {[%emt 0:00:01]} 77. Nf4 {[%emt 0:00:01]} Rg3 {[%emt 0:00:01]} 78. Ne2 {[%emt 0:00:16]} Rd3+ {[%emt 0:00:02]} 79. Ke1 {[%emt 0:00:05]} Ra3 {[%emt 0:00:12]} 80. Kd2 {[%emt 0:00:04]} Rf3 {[%emt 0:00:02]} 81. Ng1 {[%emt 0:00:02] Weighted Error Value: White=0.22 (precise) /Black=0.16 (very precise)} 1/2-1/2

[Event "ChessKid Cup Div-III 2023"]
[Site "Online"]
[Date "2023.05.23"]
[Round "52.2"]
[White "Raja Harshit"]
[Black "Tari, Aryan"]
[Result "1/2-1/2"]
[ECO "B11"]
[WhiteElo "2515"]
[BlackElo "2642"]
[Annotator "TA"]
[PlyCount "44"]
[EventDate "2023.05.21"]
[EventType "k.o."]
[EventCountry "NET"]
[SourceTitle "playchess.com"]
[Source "ChessBase"]
[SourceQuality "1"]
[TimeControl "900+3"]

{[%evp 9,44,61,60,62,58,50,49,51,54,38,54,35,60,47,58,39,71,71,129,125,125,137,216,141,228,228,220,232,228,212,370,369,505,489,506,522,475]} 1. e4 {[%emt 0:00:03]} c6 {[%emt 0:00:14]} 2. Nf3 {[%emt 0:00:02]} d5 {[%emt 0:00:04]} 3. Nc3 {[%emt 0:00:00]} Qa5 {[%emt 0:00:25]} 4. d3 {[%emt 0:01:26]} Bg4 {[%emt 0:02:09]} 5. Bd2 {[%emt 0:00:14] [#]} Bxf3 $146 {[%emt 0:00:21]} ({Predecessor:} 5... Qb6 6. b3 Nf6 7. Be3 Qb4 8. Bd2 Qb6 9. Be3 Qc7 10. Be2 g6 11. O-O Bg7 {0-1 Cunningham,D-Gumminger,F IECC M email 2000}) 6. Qxf3 {[%emt 0:00:04][%cal Rc3d5] B11: Caro-Kann: Two Knights Variation.} d4 {[%emt 0:00:01]} 7. Nd1 {[%emt 0:01:50]} Qc7 {[%emt 0:00:02]} 8. Qg3 {[%emt 0:00:10] White is slightly better.} e5 {[%emt 0:00:05]} 9. Be2 {[%emt 0:00:26]} Ne7 {[%emt 0:01:43]} 10. c3 {[%emt 0:02:24] aiming for cxd4.} dxc3 {[%emt 0:00:51]} 11. Nxc3 {[%emt 0:00:41]} Ng6 {[%emt 0:00:12]} 12. Rc1 {[%emt 0:00:16]} Nd7 {[%emt 0:02:34]} 13. d4 {[%emt 0:00:29]} Qd8 {[%emt 0:01:53] Black is weak on the light squares} (13... Rd8 $142) 14. dxe5 $16 {[%emt 0:00:37] White is more active.} Ndxe5 {[%emt 0:00:00]} 15. Rd1 {[%emt 0:00:33]} Be7 {[%emt 0:00:29]} (15... Qh4 $16 16. Qxh4 Nxh4) 16. O-O {[%emt 0:00:15][%cal Od2h6] Black must now prevent Bh6!} Qb6 {[%emt 0:01:59]} (16... O-O $16 17. f4 Nd7) 17. Be3 $18 {[%emt 0:00:02]} Qxb2 {[%emt 0:00:24] [#]} 18. Bd4 {[%emt 0:00:02] A strong pair of Bishops.} Bh4 {[%emt 0:01:31]} 19. Qh3 {[%emt 0:02:20][%cal Oc3b5] Nb5! is the strong threat.} Rd8 $2 {[%emt 0:00:02]} (19... Qb4 20. f4 Bf6) 20. Bxe5 {[%emt 0:00:24][%mdl 64] Deflection} ({Not} 20. Bxa7 O-O $14) 20... Nxe5 {[%emt 0:00:03]} 21. Qxh4 {[%emt 0:00:03][%csl Gh4][%cal Rd1d8]} Rxd1 {[%emt 0:00:22]} 22. Rxd1 {[%emt 0:00:01][%csl Gh4][%cal Rd1d8] [#]} O-O {[%emt 0:00:04][%mdl 32768] Weighted Error Value: White=0.08 (flawless) /Black=0.42. An unexpected result.} 1/2-1/2

[Event "ChessKid Cup Div-III 2023"]
[Site "Online"]
[Date "2023.05.23"]
[Round "52.3"]
[White "Bluebaum, Matthias"]
[Black "Keymer, Vincent"]
[Result "1-0"]
[ECO "E20"]
[WhiteElo "2669"]
[BlackElo "2700"]
[Annotator "TA"]
[PlyCount "311"]
[EventDate "2023.05.21"]
[EventType "k.o."]
[EventCountry "NET"]
[SourceTitle "playchess.com"]
[Source "ChessBase"]
[SourceQuality "1"]
[TimeControl "900+3"]

{[%evp 99,311,0,0,0,0,0,0,0,0,0,0,0,0,0,0,0,0,0,0,0,0,0,0,0,0,0,0,0,0,0,0,0,0,0,0,0,0,0,0,0,0,0,0,0,0,0,0,0,0,0,0,0,0,-21,-21,-20,-20,-55,-8,-55,-43,-48,0,-56,-53,-53,0,-53,0,-48,-17,-35,-38,-31,-38,-56,-56,-70,-27,-55,-55,-48,-48,-48,-15,-43,-40,-48,-8,-8,0,-22,-15,-835,-70,-79,-78,-78,0,0,0,0,0,0,0,0,0,0,682,0,0,0,0,0,0,0,0,0,0,0,0,0,0,-16,-8,-8,0,0,0,0,0,0,0,0,0,0,0,0,0,0,0,0,0,0,0,0,0,0,0,0,0,0,0,0,0,0,0,0,0,0,0,0,0,0,0,0,0,0,0,0,0,0,0,0,0,0,0,0,0,0,0,0,0,0,0,0,0,0,0,0,0,0,0,0,0,0,0,-70,0,0,0,0,0,-70,0,0,0,0,0,0,0,0,4830,4421]} 1. d4 {[%emt 0:00:06]} Nf6 {[%emt 0:00:09]} 2. c4 {[%emt 0:00:07]} e6 {[%emt 0:04:32]} 3. Nc3 {[%emt 0:00:03]} Bb4 {[%emt 0:00:06]} 4. g3 {[%emt 0:00:04]} Bxc3+ {[%emt 0:00:05]} 5. bxc3 {[%emt 0:00:04]} Nc6 {[%emt 0:00:03]} 6. Bg2 {[%emt 0:00:06]} d6 {[%emt 0:00:04]} 7. Nf3 {[%emt 0:00:14]} O-O {[%emt 0:00:05]} 8. Qd3 {[%emt 0:00:11]} Rb8 {[%emt 0:00:04]} 9. Nd2 {[%emt 0:00:06]} Qd7 {[%emt 0:00:04]} 10. Nb3 {[%emt 0:00:09]} b6 {[%emt 0:00:08]} 11. Bg5 {[%emt 0:00:04]} Ne8 {[%emt 0:01:24]} 12. O-O {[%emt 0:00:28]} Bb7 {[%emt 0:00:50]} 13. Rfd1 {[%emt 0:00:12]} h6 {[%emt 0:00:12]} 14. Bf4 {[%emt 0:00:32]} Qe7 {[%emt 0:00:39]} 15. d5 {[%emt 0:00:55]} Ne5 {[%emt 0:00:33]} 16. Bxe5 {[%emt 0:00:07]} dxe5 {[%emt 0:00:03]} 17. Qe3 {[%emt 0:00:03]} Nd6 {[%emt 0:00:43]} 18. Nd2 {[%emt 0:01:23]} Rbe8 {[%emt 0:01:11]} 19. c5 {[%emt 0:00:41]} Nf5 {[%emt 0:01:04]} 20. Qxe5 {[%emt 0:00:06]} Qxc5 {[%emt 0:00:04]} 21. Nb3 {[%emt 0:00:34]} Qd6 {[%emt 0:00:12]} 22. Qxd6 {[%emt 0:00:28]} Nxd6 {[%emt 0:00:03]} 23. dxe6 {[%emt 0:00:10]} Bxg2 {[%emt 0:00:04]} 24. Kxg2 {[%emt 0:00:03]} Rxe6 {[%emt 0:00:04]} 25. Nd4 {[%emt 0:00:03]} Re5 {[%emt 0:00:04]} 26. a4 {[%emt 0:00:13]} a5 {[%emt 0:00:05]} 27. Rd3 {[%emt 0:00:20]} Rfe8 {[%emt 0:00:05]} 28. e3 {[%emt 0:00:15]} Kf8 {[%emt 0:00:05]} 29. Rb1 {[%emt 0:00:08]} Rc5 {[%emt 0:00:04]} 30. Ra1 {[%emt 0:00:38]} g6 {[%emt 0:00:04]} 31. Nb3 {[%emt 0:00:05]} Rc4 {[%emt 0:00:09]} 32. Nd2 {[%emt 0:00:05]} Rc5 {[%emt 0:00:05]} 33. Rc1 {[%emt 0:00:15]} Ne4 {[%emt 0:00:12]} 34. Nb3 {[%emt 0:00:07]} Rc4 {[%emt 0:00:05]} 35. Rd4 {[%emt 0:00:12]} Rxc3 {[%emt 0:00:13]} 36. Rxc3 {[%emt 0:00:13]} Nxc3 {[%emt 0:00:04]} 37. Rc4 {[%emt 0:00:03]} Nd5 {[%emt 0:00:07]} 38. e4 {[%emt 0:00:03]} Nb4 {[%emt 0:00:07]} 39. Rxc7 {[%emt 0:00:18]} Rxe4 {[%emt 0:00:05]} 40. Nd2 {[%emt 0:00:03]} Re6 {[%emt 0:00:16]} 41. Rb7 {[%emt 0:00:13]} Nd3 {[%emt 0:00:05]} 42. Nc4 {[%emt 0:00:11]} Nc5 {[%emt 0:00:06]} 43. Rb8+ {[%emt 0:00:07]} Kg7 {[%emt 0:00:09]} 44. Nxb6 {[%emt 0:00:06]} Re4 {[%emt 0:00:07]} 45. Rc8 {[%emt 0:00:26]} Nxa4 {[%emt 0:00:06]} 46. Nc4 {[%emt 0:00:03]} Re7 {[%emt 0:00:25]} 47. Ra8 {[%emt 0:00:13]} Nc5 {[%emt 0:00:05]} 48. Rxa5 {[%emt 0:00:05]} Ne4 {[%emt 0:00:04]} 49. Ne3 {[%emt 0:00:07]} Nf6 {[%emt 0:00:05]} 50. h3 {[%emt 0:00:06]} h5 {[%emt 0:00:03]} 51. Ra6 {[%emt 0:00:03]} Rd7 {[%emt 0:00:05]} 52. Nc4 {[%emt 0:00:05]} Re7 {[%emt 0:00:04]} 53. Ra8 {[%emt 0:00:07]} Re6 {[%emt 0:00:05]} 54. Rd8 {[%emt 0:00:05]} Re4 {[%emt 0:00:05]} 55. Ne3 {[%emt 0:00:07]} Re6 {[%emt 0:00:03]} 56. Kf3 {[%emt 0:00:04]} Re7 {[%emt 0:00:04]} 57. Rd4 {[%emt 0:00:04]} Re6 {[%emt 0:00:04]} 58. Rc4 {[%emt 0:00:04]} Re7 {[%emt 0:00:03]} 59. Rb4 {[%emt 0:00:03]} Re6 {[%emt 0:00:04]} 60. Ra4 {[%emt 0:00:04]} Re7 {[%emt 0:00:03]} 61. Ra6 {[%emt 0:00:05]} Re8 {[%emt 0:00:04]} 62. Ra7 {[%emt 0:00:04]} Re6 {[%emt 0:00:04]} 63. Rb7 {[%emt 0:00:04]} Re8 {[%emt 0:00:04]} 64. Rb5 {[%emt 0:00:05]} Re6 {[%emt 0:00:03]} 65. Rb1 {[%emt 0:00:04]} Re8 {[%emt 0:00:04]} 66. Rb2 {[%emt 0:00:04]} Re6 {[%emt 0:00:03]} 67. Rb3 {[%emt 0:00:03]} Re8 {[%emt 0:00:04]} 68. Rb6 {[%emt 0:00:03]} Re7 {[%emt 0:00:04]} 69. Rb1 {[%emt 0:00:15]} Re6 {[%emt 0:00:04]} 70. g4 {[%emt 0:00:03]} hxg4+ {[%emt 0:00:04]} 71. hxg4 {[%emt 0:00:03]} Ne4 {[%emt 0:00:05]} 72. Rd1 {[%emt 0:00:08]} Ng5+ {[%emt 0:00:04]} 73. Kg2 {[%emt 0:00:06]} Ne4 {[%emt 0:00:04]} 74. Rd4 {[%emt 0:00:03]} Nf6 {[%emt 0:00:06]} 75. Ra4 {[%emt 0:00:05]} Re4 {[%emt 0:00:04]} 76. Ra7 {[%emt 0:00:27]} Nxg4 {[%emt 0:00:05]} 77. Kf3 {[%emt 0:00:03]} Nf6 {[%emt 0:00:04]} 78. Ra6 {[%emt 0:00:04]} Re6 {[%emt 0:00:04]} (78... Re7 $15 {should be considered.}) 79. Ra7 {[%emt 0:00:04]} (79. Rxe6 $11 fxe6 80. Kf4) 79... Nh7 {[%emt 0:00:04]} 80. Kg3 {[%emt 0:00:05]} Nf6 {[%emt 0:00:03]} (80... Ng5 $15) 81. Ra4 {[%emt 0:00:10]} (81. Kf3 $11) 81... Ne4+ {[%emt 0:00:04]} 82. Kg2 {[%emt 0:00:03]} Nf6 {[%emt 0:00:04]} ({Black should play} 82... Re5 $15) 83. Ra3 {[%emt 0:00:06]} (83. Kg3 $1 $11) 83... Ne4 {[%emt 0:00:04]} (83... Rb6 $15) 84. Ra2 {[%emt 0:00:14]} (84. Ra4 $1 $11) 84... g5 {[%emt 0:00:03]} 85. Ra8 {[%emt 0:00:07]} Nf6 {[%emt 0:00:05]} 86. Nf5+ {[%emt 0:00:05]} Kg6 {[%emt 0:00:03]} 87. Nd4 {[%emt 0:00:04]} Re4 {[%emt 0:00:04]} 88. Nf3 {[%emt 0:00:05]} Rg4+ {[%emt 0:00:07]} 89. Kf1 {[%emt 0:00:04]} Rf4 {[%emt 0:00:03]} 90. Ne5+ {[%emt 0:00:06]} Kg7 {[%emt 0:00:04]} 91. Ra7 {[%emt 0:00:06]} Ng4 {[%emt 0:00:04]} 92. Nd3 {[%emt 0:00:03]} Rf5 {[%emt 0:00:06]} 93. Kg2 {[%emt 0:00:08]} Ne5 {[%emt 0:00:03]} 94. Ra5 {[%emt 0:00:07]} f6 {[%emt 0:00:04]} 95. Ra7+ {[%emt 0:00:05]} Kg6 {[%emt 0:00:03]} 96. Nc5 $2 {[%emt 0:00:05][%mdl 8192]} (96. Nxe5+ $11 Rxe5 97. Ra6) 96... Ng4 $2 {[%emt 0:00:04]} ({Better is} 96... Nc6 $19 97. Rc7 Rxc5) 97. Ne4 {[%emt 0:00:04]} Rf4 {[%emt 0:00:06]} 98. Re7 {[%emt 0:00:26]} f5 {[%emt 0:00:07]} (98... Ne5 $17 99. Nc3 Rg4+ 100. Kf1 Rc4) 99. Re6+ $11 {[%emt 0:00:04]} Kg7 {[%emt 0:00:05]} 100. Nxg5 {[%emt 0:00:04]} Rxf2+ {[%emt 0:00:04]} 101. Kg3 {[%emt 0:00:03]} Ra2 {[%emt 0:00:03]} 102. Rb6 {[%emt 0:00:06]} Ra4 {[%emt 0:00:05]} 103. Ne6+ {[%emt 0:00:05]} Kf6 $2 {[%emt 0:00:03][%mdl 8192]} (103... Kf7 $11) 104. Nf4+ $2 {[%emt 0:00:07]} (104. Nc5+ $18 Kg5 105. Nxa4) 104... Kf7 {[%emt 0:00:06]} 105. Nd5 {[%emt 0:00:06]} Rd4 {[%emt 0:00:05]} 106. Rb7+ {[%emt 0:00:05]} Kg6 {[%emt 0:00:05]} 107. Nf4+ {[%emt 0:00:04]} Kf6 {[%emt 0:00:03]} 108. Rb6+ {[%emt 0:00:03]} Kf7 {[%emt 0:00:04]} 109. Ra6 {[%emt 0:00:05]} Nf6 {[%emt 0:00:04]} 110. Kf3 {[%emt 0:00:05]} Ne4 {[%emt 0:00:04]} 111. Ne2 {[%emt 0:00:11]} Rd2 {[%emt 0:00:05]} 112. Ke3 {[%emt 0:00:06]} Rb2 {[%emt 0:00:04]} 113. Nd4 {[%emt 0:00:05]} Nc5 {[%emt 0:00:04]} 114. Rc6 {[%emt 0:00:06]} Nd7 {[%emt 0:00:05]} 115. Rd6 {[%emt 0:00:16]} Ke7 {[%emt 0:00:05]} 116. Ra6 {[%emt 0:00:10]} f4+ {[%emt 0:00:03]} 117. Kf3 {[%emt 0:00:07]} Ne5+ {[%emt 0:00:04]} 118. Ke4 {[%emt 0:00:03]} Nd7 {[%emt 0:00:04]} 119. Nf5+ {[%emt 0:00:04]} Kf7 {[%emt 0:00:04]} 120. Nd6+ {[%emt 0:00:05]} Ke7 {[%emt 0:00:05]} 121. Nf5+ {[%emt 0:00:03]} Kf7 {[%emt 0:00:03]} 122. Ra7 {[%emt 0:00:04]} Ke6 {[%emt 0:00:04]} 123. Nd4+ {[%emt 0:00:04]} Ke7 {[%emt 0:00:03]} 124. Nf3 {[%emt 0:00:05]} Rb4+ {[%emt 0:00:04]} 125. Kf5 {[%emt 0:00:05]} Kd6 {[%emt 0:00:04]} 126. Ra6+ {[%emt 0:00:04]} Kd5 {[%emt 0:00:03]} 127. Ra1 {[%emt 0:00:05]} Nc5 {[%emt 0:00:04]} 128. Rd1+ {[%emt 0:00:04]} Kc6 {[%emt 0:00:04]} 129. Ne5+ {[%emt 0:00:04]} Kb5 {[%emt 0:00:04]} 130. Rd8 {[%emt 0:00:04]} f3 {[%emt 0:00:04]} 131. Nxf3 {[%emt 0:00:15]} Ra4 {[%emt 0:00:03]} 132. Ne5 {[%emt 0:00:05]} Ra7 {[%emt 0:00:05]} 133. Rd1 {[%emt 0:00:04]} Rb7 {[%emt 0:00:04]} 134. Nf3 {[%emt 0:00:07]} Rf7+ {[%emt 0:00:04]} 135. Kg4 $1 {[%emt 0:00:04]} Rg7+ {[%emt 0:00:03]} 136. Kf4 {[%emt 0:00:05]} Rf7+ {[%emt 0:00:04]} 137. Ke3 {[%emt 0:00:03]} Re7+ {[%emt 0:00:03]} 138. Kf2 {[%emt 0:00:03]} Ne4+ {[%emt 0:00:04]} 139. Kg2 {[%emt 0:00:04]} Rg7+ {[%emt 0:00:04]} 140. Kf1 {[%emt 0:00:03]} Rf7 {[%emt 0:00:03]} 141. Kg2 {[%emt 0:00:18]} Rg7+ {[%emt 0:00:04]} 142. Kh2 {[%emt 0:00:04]} Rh7+ {[%emt 0:00:03]} 143. Kg1 {[%emt 0:00:03]} Rg7+ {[%emt 0:00:04]} 144. Kf1 {[%emt 0:00:03]} Rf7 {[%emt 0:00:03]} 145. Rb1+ {[%emt 0:00:07]} Kc4 {[%emt 0:00:04]} 146. Rc1+ {[%emt 0:00:05]} Kd3 {[%emt 0:00:03]} 147. Kg2 {[%emt 0:00:04]} Rg7+ {[%emt 0:00:04]} 148. Kh3 {[%emt 0:00:05]} (148. Kh2 $11) 148... Rh7+ {[%emt 0:00:04]} (148... Rg3+ $1 $15 149. Kh4 Rxf3) 149. Kg4 $11 {[%emt 0:00:04]} Rg7+ {[%emt 0:00:03]} 150. Kh5 {[%emt 0:00:06]} Ke3 {[%emt 0:00:05]} 151. Ne5 {[%emt 0:00:05]} (151. Kh6 $11) 151... Kf4 {[%emt 0:00:03]} (151... Rg5+ $1 $15 152. Kh6 Rxe5) 152. Ng6+ $11 {[%emt 0:00:04]} Kf5 {[%emt 0:00:04]} 153. Rf1+ {[%emt 0:00:04]} Ke6 {[%emt 0:00:03]} 154. Kh6 {[%emt 0:00:04]} Rg8 {[%emt 0:00:04]} 155. Re1 {[%emt 0:00:05]} Kf5 $2 {[%emt 0:00:04][%mdl 8192]} (155... Kf6 $11) 156. Ne7+ {[%emt 0:00:04]} 1-0